fUSD/lending_fUSD_20241127
["ID","MTS","AMOUNT","RATE_DAILY","PERIOD"]
[343550123,1732719042628,-2008.84,9.999e-05,2]
[343550125,1732719042637,-2008.84,9.999e-05,2]
[343550127,1732719042647,-2008.84,9.999e-05,2]
[343550129,1732719042656,-2008.84,9.999e-05,2]
[343550131,1732719042665,-2008.84,9.999e-05,2]
[343550133,1732719042674,-2008.84,9.999e-05,2]
[343550135,1732719042683,-2008.84,9.999e-05,2]
[343550137,1732719042692,-2008.84,9.999e-05,2]
[343550139,1732719042700,-2008.84,9.999e-05,2]
[343550141,1732719042710,-13627.96,9.999e-05,2]
[343550143,1732719042719,-2008.84,9.999e-05,2]
[343550145,1732719042728,-13627.96,9.999e-05,2]
[343550147,1732719042737,-2008.84,9.999e-05,2]
[343550149,1732719042747,-13627.96,9.999e-05,2]
[343550151,1732719042756,-2008.84,9.999e-05,2]
[343550153,1732719042765,-2008.84,9.999e-05,2]
[343550155,1732719042775,-13627.96,9.999e-05,2]
[343550157,1732719042784,-13627.96,9.999e-05,2]
[343550159,1732719042793,-2008.84,9.999e-05,2]
[343550161,1732719042805,-13627.96,9.999e-05,2]
[343550163,1732719042814,-2008.84,9.999e-05,2]
[343550165,1732719042823,-13627.96,9.999e-05,2]
[343550167,1732719042833,-2009.00511854,9.999e-05,2]
[343550169,1732719042842,-13627.96,9.999e-05,2]
[343550171,1732719042851,-13627.96,9.999e-05,2]
[343550173,1732719042860,-13627.96,9.999e-05,2]
[343550175,1732719042870,-13627.96,9.999e-05,2]
[343550177,1732719042879,-13627.96,9.999e-05,2]
[343550179,1732719042888,-13627.96,9.999e-05,2]
[343550181,1732719042898,-13627.96,9.999e-05,2]
[343550183,1732719042907,-13627.96,9.999e-05,2]
[343550185,1732719042917,-13628.05288652,9.999e-05,2]
[343550187,1732719042926,-500.0,9.999e-05,2]
[343550189,1732719042935,-500.0,9.999e-05,2]
[343550191,1732719042944,-500.0,9.999e-05,2]
[343550193,1732719042953,-644.75,9.999e-05,2]
[343550195,1732719042962,-500.0,9.999e-05,2]
[343550197,1732719042971,-500.0,9.999e-05,2]
[343550199,1732719042981,-479.84729613,9.999e-05,2]
[343550201,1732719042990,-38742.91,9.999e-05,2]
[343550203,1732719042999,-38742.91,9.999e-05,2]
[343550205,1732719043008,-38742.91,9.999e-05,2]
[343550207,1732719043017,-38742.91,9.999e-05,2]
[343550209,1732719043027,-38742.91,9.999e-05,2]
[343550211,1732719043036,-38742.91,9.999e-05,2]
[343550213,1732719043047,-38742.91,9.999e-05,2]
[343550215,1732719043056,-38742.91,9.999e-05,2]
[343550217,1732719043065,-38742.93503073,9.999e-05,2]
[343550220,1732719043075,-11730.44,9.999e-05,2]
[343550221,1732719043084,-11730.44,9.999e-05,2]
[343550224,1732719043093,-16085.72,9.999e-05,2]
[343550226,1732719043103,-11730.44,9.999e-05,2]
[343550228,1732719043112,-16085.72,9.999e-05,2]
[343550230,1732719043122,-11730.44,9.999e-05,2]
[343550232,1732719043132,-11730.44,9.999e-05,2]
[343550235,1732719043142,-16085.72,9.999e-05,2]
[343550238,1732719043152,-11730.44,9.999e-05,2]
[343550240,1732719043161,-11730.44,9.999e-05,2]
[343550243,1732719043171,-16085.72,9.999e-05,2]
[343550245,1732719043181,-11730.44,9.999e-05,2]
[343550247,1732719043190,-16085.72,9.999e-05,2]
[343550250,1732719043200,-11730.44,9.999e-05,2]
[343550253,1732719043209,-11730.44,9.999e-05,2]
[343550255,1732719043218,-16085.72,9.999e-05,2]
[343550257,1732719043228,-11730.44,9.999e-05,2]
[343550259,1732719043238,-16085.72,9.999e-05,2]
[343550261,1732719043247,-11730.44,9.999e-05,2]
[343550263,1732719043257,-16085.72,9.999e-05,2]
[343550265,1732719043266,-11730.44,9.999e-05,2]
[343550267,1732719043275,-16085.86873431,9.999e-05,2]
[343550270,1732719043284,-11730.44,9.999e-05,2]
[343550272,1732719043293,-11730.44,9.999e-05,2]
[343550275,1732719043308,-11730.66142025,9.999e-05,2]
[343550278,1732719043319,-4463.85,9.999e-05,2]
[343550280,1732719043328,-4463.85,9.999e-05,2]
[343550284,1732719043338,-4463.85,9.999e-05,2]
[343550287,1732719043348,-4463.85,9.999e-05,2]
[343550290,1732719043357,-4463.85,9.999e-05,2]
[343550292,1732719043366,-4463.85,9.999e-05,2]
[343550294,1732719043375,-4463.85,9.999e-05,2]
[343550296,1732719043386,-4463.85,9.999e-05,2]
[343550298,1732719043395,-4464.07396478,9.999e-05,2]
[343550300,1732719043403,-13157.64,9.999e-05,2]
[343550302,1732719043412,-500.0,9.999e-05,2]
[343550304,1732719043421,-13157.64,9.999e-05,2]
[343550306,1732719043430,-13157.64,9.999e-05,2]
[343550308,1732719043439,-500.0,9.999e-05,2]
[343550310,1732719043449,-13157.64,9.999e-05,2]
[343550312,1732719043458,-226.11,9.999e-05,2]
[343550314,1732719043467,-13157.64,9.999e-05,2]
[343550316,1732719043475,-13157.64,9.999e-05,2]
[343550318,1732719043485,-13157.64,9.999e-05,2]
[343550320,1732719043493,-13157.64,9.999e-05,2]
[343550322,1732719043502,-13157.64,9.999e-05,2]
[343550324,1732719043511,-13157.64,9.999e-05,2]
[343550326,1732719043520,-13157.64,9.999e-05,2]
[343550328,1732719043529,-13157.64,9.999e-05,2]
[343550330,1732719043539,-13157.64,9.999e-05,2]
[343550332,1732719043551,-13157.64,9.999e-05,2]
[343550334,1732719043559,-13157.64,9.999e-05,2]
[343550336,1732719043568,-13157.64138305,9.999e-05,2]
[343550338,1732719043578,-1907.25,9.999e-05,2]
[343550340,1732719043587,-1907.25,9.999e-05,2]
[343550342,1732719043596,-1907.25,9.999e-05,2]
[343550344,1732719043605,-1907.25,9.999e-05,2]
[343550345,1732719043614,-1907.25,9.999e-05,2]
[343550347,1732719043623,-1907.25,9.999e-05,2]
[343550349,1732719043632,-1907.25,9.999e-05,2]
[343550351,1732719043641,-1907.25,9.999e-05,2]
[343550353,1732719043651,-1907.32756966,9.999e-05,2]
[343550355,1732719043660,-2657.99,9.999e-05,2]
[343550357,1732719043670,-306.62,9.999e-05,2]
[343550359,1732719043679,-2657.99,9.999e-05,2]
[343550361,1732719043688,-2657.99,9.999e-05,2]
[343550363,1732719043698,-2657.99,9.999e-05,2]
[343550365,1732719043707,-2657.99,9.999e-05,2]
[343550367,1732719043716,-2657.99,9.999e-05,2]
[343550369,1732719043726,-2657.99,9.999e-05,2]
[343550371,1732719043735,-500.0,9.999e-05,2]
[343550373,1732719043744,-2657.99,9.999e-05,2]
[343550375,1732719043753,-500.0,9.999e-05,2]
[343550378,1732719043763,-2658.00734734,9.999e-05,2]
[343550380,1732719043772,-500.0,9.999e-05,2]
[343550381,1732719043781,-160.05,9.999e-05,2]
[343550383,1732719043792,-10352.91,9.999e-05,2]
[343550385,1732719043807,-10352.91,9.999e-05,2]
[343550387,1732719043816,-10352.91,9.999e-05,2]
[343550389,1732719043825,-10352.91,9.999e-05,2]
[343550391,1732719043834,-10352.91,9.999e-05,2]
[343550393,1732719043843,-10352.91,9.999e-05,2]
[343550395,1732719043853,-10352.91,9.999e-05,2]
[343550397,1732719043862,-500.0,9.999e-05,2]
[343550399,1732719043871,-10352.91,9.999e-05,2]
[343550401,1732719043880,-10352.99,9.999e-05,2]
[343550403,1732719043890,-500.0,9.999e-05,2]
[343550405,1732719043899,-14320.83,9.999e-05,2]
[343550407,1732719043909,-14320.83,9.999e-05,2]
[343550409,1732719043918,-14320.83,9.999e-05,2]
[343550411,1732719043927,-14320.83,9.999e-05,2]
[343550413,1732719043937,-14320.83,9.999e-05,2]
[343550415,1732719043946,-14320.83,9.999e-05,2]
[343550417,1732719043955,-14320.83,9.999e-05,2]
[343550419,1732719043964,-14320.83,9.999e-05,2]
[343550421,1732719043974,-14320.97298189,9.999e-05,2]
[343550423,1732719043983,-10564.44,9.999e-05,2]
[343550425,1732719043992,-500.0,9.999e-05,2]
[343550427,1732719044001,-10564.44,9.999e-05,2]
[343550429,1732719044011,-522.33,9.999e-05,2]
[343550431,1732719044020,-10564.44,9.999e-05,2]
[343550433,1732719044029,-10564.44,9.999e-05,2]
[343550435,1732719044039,-10564.44,9.999e-05,2]
[343550437,1732719044052,-10564.44,9.999e-05,2]
[343550439,1732719044061,-10564.44,9.999e-05,2]
[343550441,1732719044071,-10564.44,9.999e-05,2]
[343550443,1732719044080,-10564.44,9.999e-05,2]
[343550445,1732719044090,-10564.44,9.999e-05,2]
[343550447,1732719044099,-10564.44,9.999e-05,2]
[343550449,1732719044109,-10564.44,9.999e-05,2]
[343550451,1732719044119,-10564.44,9.999e-05,2]
[343550453,1732719044128,-10564.44,9.999e-05,2]
[343550455,1732719044138,-10564.44,9.999e-05,2]
[343550457,1732719044147,-10564.58700474,9.999e-05,2]
[343550459,1732719044157,-2193.39,9.999e-05,2]
[343550461,1732719044167,-2193.39,9.999e-05,2]
[343550463,1732719044176,-2193.39,9.999e-05,2]
[343550465,1732719044186,-2193.39,9.999e-05,2]
[343550467,1732719044196,-2193.39,9.999e-05,2]
[343550469,1732719044205,-2193.39,9.999e-05,2]
[343550471,1732719044214,-2193.39,9.999e-05,2]
[343550473,1732719044223,-2193.39,9.999e-05,2]
[343550475,1732719044233,-2193.39,9.999e-05,2]
[343550477,1732719044243,-2193.39,9.999e-05,2]
[343550479,1732719044253,-2193.39,9.999e-05,2]
[343550481,1732719044263,-2193.39,9.999e-05,2]
[343550483,1732719044273,-2193.39,9.999e-05,2]
[343550485,1732719044282,-2193.39,9.999e-05,2]
[343550487,1732719044292,-2193.39,9.999e-05,2]
[343550489,1732719044308,-2193.41000001,9.999e-05,2]
[343550491,1732719044318,-385764.63839597,0.0001,2]
[343550492,1732719044327,-5630.24917554,0.0001,2]
[343550493,1732719044336,-4509.66795666,0.0001,2]
[343550494,1732719044347,-4509.66795661,0.0001,2]
[343550495,1732719044356,-4509.66795661,0.0001,2]
[343550496,1732719044365,-4509.66795661,0.0001,2]
[343550497,1732719044376,-4509.66795661,0.0001,2]
[343550498,1732719044386,-4509.66795661,0.0001,2]
[343550499,1732719044395,-4509.66795661,0.0001,2]
[343550500,1732719044404,-4509.66795661,0.0001,2]
[343550501,1732719044414,-4509.66795661,0.0001,2]
[343550502,1732719044423,-1897015.96670759,0.0001,2]
[343550507,1732719044461,-880.40944279,0.0001,2]
[343550511,1732719044487,-2016.9595026,0.0001,2]
[343550528,1732719044578,-4723.2756,0.0001,2]
[343550532,1732719044609,-344.47787206,0.0001,2]
[343550534,1732719044620,-2389.07883805,0.0001,2]
[343550536,1732719044631,-1051.89999998,0.0001,2]
[343550570,1732719044946,-9484.85103935,0.0001,2]
[343550572,1732719044958,-2505.21972308,0.0001,2]
[343550574,1732719044969,-1641.12152922,0.0001,2]
[343550577,1732719044987,-35230.0,0.0001,2]
[343550578,1732719044999,-691.401,0.0001,2]
[343550579,1732719045011,-12545.0402295,0.0001,2]
[343550580,1732719045022,-11765.69036834,0.0001,2]
[343550581,1732719045034,-6649.51123384,0.0001,2]
[343550582,1732719045050,-2769.19668645,0.0001,2]
[343550583,1732719045118,-72306.53304964,0.0001,2]
[343550711,1732719046557,-28470.6,0.0001,2]
[343550730,1732719046733,-17626.97966055,0.0001,2]
[343550732,1732719046745,-1574.75009959,0.0001,2]
[343550734,1732719046756,-1178.02262433,0.0001,2]
[343550774,1732719047235,-9468.00000001,0.0001,2]
[343550776,1732719047246,-725.8,0.0001,2]
[343550778,1732719047257,-4739.0499208,0.0001,2]
[343550780,1732719047268,-105340.47612686,0.0001,2]
[343550782,1732719047279,-1644.73174615,0.0001,2]
[343550785,1732719047299,-33530.40780581,0.0001,2]
[343550787,1732719047314,-4512.38788796,0.0001,2]
[343550789,1732719047325,-154843.39333535,0.0001,2]
[343550792,1732719047336,-189482.0,0.0001,2]
[343550794,1732719047347,-340.13765132,0.0001,2]
[343550796,1732719047359,-9487.63740001,0.0001,2]
[343552072,1732719585288,10000.0,0.00026,120]
[343552123,1732719705963,177.491758,0.00026,120]
[343552124,1732719706377,177.491758,0.00026,120]
[343552126,1732719706700,177.491758,0.00026,120]
[343552127,1732719707044,177.491758,0.00026,120]
[343552128,1732719707391,177.491758,0.00026,120]
[343552144,1732719767108,164.56880124,6.81e-05,2]
[343552145,1732719767132,12.93119876,6.81e-05,2]
[343554862,1732720202939,150.0,6.81e-05,2]
[343554865,1732720231747,-279.918,8.178e-05,2]
[343554866,1732720231758,-1524.98,8.219e-05,2]
[343554867,1732720231768,-185.83,8.219e-05,2]
[343554868,1732720231779,-250.0,8.45e-05,2]
[343554869,1732720231793,-5509.56,8.5e-05,2]
[343554871,1732720231803,-250.0,8.556e-05,2]
[343554872,1732720231814,-842.44,8.583e-05,2]
[343554873,1732720231823,-548.45,8.591e-05,2]
[343554874,1732720231834,-868.9,8.6e-05,2]
[343554875,1732720231844,-912.25,8.642e-05,2]
[343554876,1732720231854,-341.82,8.714e-05,2]
[343554877,1732720231864,-1000.0,8.823e-05,2]
[343554878,1732720231874,-2000.0,9e-05,3]
[343554879,1732720231884,-4000.0,9.1e-05,3]
[343554880,1732720231894,-434.45,9.154e-05,2]
[343554881,1732720231904,-434.45,9.154e-05,2]
[343554882,1732720231914,-434.45,9.154e-05,2]
[343554883,1732720231927,-434.45,9.154e-05,2]
[343554884,1732720231938,-6000.0,9.2e-05,3]
[343554885,1732720231949,-178.61,9.253e-05,2]
[343554886,1732720231959,-8100.0,9.3e-05,3]
[343554887,1732720231968,-150.0,9.399e-05,2]
[343554888,1732720231979,-10100.0,9.4e-05,3]
[343554889,1732720231990,-3678.85452652,9.49e-05,2]
[343554890,1732720232000,-2000.0,9.5e-05,3]
[343554891,1732720232010,-2000.0,9.6e-05,3]
[343554892,1732720232020,-1531.0,9.605e-05,2]
[343554893,1732720232029,-448.82,9.67e-05,2]
[343554894,1732720232039,-690.61,9.67e-05,2]
[343554895,1732720232050,-5772.5825,9.7e-05,2]
[343554896,1732720232059,-5247.7827,9.7e-05,2]
[343554897,1732720232069,-9588.402,9.7e-05,2]
[343554898,1732720232079,-2000.0,9.7e-05,3]
[343554899,1732720232089,-1096.0,9.781e-05,2]
[343554900,1732720232097,-158.363,9.781e-05,2]
[343554901,1732720232107,-156.126,9.781e-05,2]
[343554902,1732720232116,-1164.0,9.781e-05,2]
[343554903,1732720232125,-5953.0,9.781e-05,2]
[343554904,1732720232135,-11534.35931446,9.781e-05,2]
[343554905,1732720232147,-256.19314341,9.781e-05,2]
[343554906,1732720232186,-1897.44754213,9.781e-05,2]
[343554907,1732720232195,-592.77926072,9.8e-05,2]
[343554908,1732720232207,-86.31313928,9.8e-05,2]
[343554909,1732720232217,-11688.96795023,9.8e-05,2]
[343554910,1732720232263,-122748.83084977,9.8e-05,2]
[343554911,1732720232273,-2000.0,9.8e-05,3]
[343554912,1732720232283,-5270.68977623,9.81e-05,2]
[343554913,1732720232295,-8094.4,9.81e-05,2]
[343554914,1732720232308,-3100.0,9.81e-05,2]
[343554915,1732720232319,-3798.117504,9.81e-05,2]
[343554916,1732720232338,-481.315,9.81e-05,2]
[343554926,1732720237734,-3512.24311977,9.81e-05,2]
[343554927,1732720237744,-150.0,9.854e-05,2]
[343554928,1732720237754,-500.0,9.863e-05,2]
[343554929,1732720237763,-500.0,9.863e-05,2]
[343554930,1732720237773,-500.0,9.863e-05,2]
[343554931,1732720237785,-500.0,9.863e-05,2]
[343554933,1732720237794,-500.0,9.863e-05,2]
[343554934,1732720237804,-500.0,9.863e-05,2]
[343554935,1732720237813,-500.0,9.863e-05,2]
[343554936,1732720237823,-500.0,9.863e-05,2]
[343554937,1732720237831,-500.0,9.863e-05,2]
[343554938,1732720237841,-1462.26,9.863e-05,2]
[343554939,1732720237850,-7042.96,9.863e-05,2]
[343554940,1732720237859,-500.0,9.863e-05,2]
[343554941,1732720237868,-500.0,9.863e-05,2]
[343554942,1732720237877,-300.0133577,9.863e-05,2]
[343554943,1732720237889,-308.7566423,9.863e-05,2]
[343554944,1732720237898,-171.5533577,9.863e-05,2]
[343554945,1732720237910,-385.7966423,9.863e-05,2]
[343554946,1732720237919,-325.2033477,9.863e-05,2]
[343554947,1732720237937,-174.7966523,9.863e-05,2]
[343554948,1732720237947,-500.0,9.863e-05,2]
[343554949,1732720237957,-473.7632,9.896e-05,2]
[343554950,1732720237967,-73.0986507,9.896e-05,2]
[343554954,1732720238632,-642.1213493,9.896e-05,2]
[343554955,1732720238642,-192.23345785,9.896e-05,2]
[343554956,1732720238654,-804.50654215,9.896e-05,2]
[343554957,1732720238662,-3749.58688187,9.896e-05,2]
[343555052,1732720239670,-482.32234989,8.219e-05,2]
[343555054,1732720239682,-8.21389205,8.219e-05,2]
[343555056,1732720239691,-132.75311813,9.896e-05,2]
[343555058,1732720239702,-168.88038985,9.896e-05,2]
[343555063,1732720239788,-299.50439871,9.896e-05,2]
[343555065,1732720240037,-516.94,9.896e-05,2]
[343555091,1732720242685,-474.9981,9.896e-05,2]
[343555092,1732720242696,-1681.79617525,9.896e-05,2]
[343555093,1732720242712,-1855.25093619,9.896e-05,2]
[343555094,1732720242721,-83.50471039,9.896e-05,2]
[343555095,1732720242732,-317.39853151,9.896e-05,2]
[343555096,1732720242743,-389.11963647,9.897e-05,2]
[343555097,1732720242752,-500.0,9.897e-05,2]
[343555098,1732720242762,-500.0,9.897e-05,2]
[343555100,1732720242771,-500.0,9.897e-05,2]
[343555101,1732720242782,-500.0,9.897e-05,2]
[343555102,1732720242791,-37.54394428,9.897e-05,2]
[343555103,1732720242802,-462.45605572,9.897e-05,2]
[343555104,1732720243032,-500.0,9.897e-05,2]
[343555106,1732720243042,-570.47,9.897e-05,2]
[343555108,1732720243051,-500.0,9.897e-05,2]
[343555109,1732720243061,-500.0,9.897e-05,2]
[343555111,1732720243070,-500.0,9.897e-05,2]
[343555112,1732720243079,-500.0,9.897e-05,2]
[343555113,1732720243088,-538.58,9.897e-05,2]
[343555114,1732720243098,-500.0,9.897e-05,2]
[343555115,1732720243107,-500.0,9.897e-05,2]
[343555116,1732720243117,-500.0,9.897e-05,2]
[343555118,1732720243126,-500.0,9.897e-05,2]
[343555119,1732720243136,-500.0,9.897e-05,2]
[343555121,1732720243145,-500.0,9.897e-05,2]
[343555123,1732720243154,-500.0,9.897e-05,2]
[343555125,1732720243163,-500.0,9.897e-05,2]
[343555127,1732720243172,-597.91,9.897e-05,2]
[343555129,1732720243184,-306.62,9.897e-05,2]
[343555131,1732720243193,-500.0,9.897e-05,2]
[343555133,1732720243202,-500.0,9.897e-05,2]
[343555135,1732720243211,-500.0,9.897e-05,2]
[343555137,1732720243220,-500.0,9.897e-05,2]
[343555139,1732720243229,-500.0,9.897e-05,2]
[343555141,1732720243239,-559.09,9.897e-05,2]
[343555143,1732720243248,-500.0,9.897e-05,2]
[343555145,1732720243257,-500.0,9.897e-05,2]
[343555147,1732720243266,-979.35,9.899e-05,2]
[343555149,1732720243275,-4923.00435436,9.9e-05,2]
[343555151,1732720243284,-267.3186,9.9e-05,2]
[343555153,1732720243295,-625.0,9.9e-05,2]
[343555154,1732720243304,-625.0,9.9e-05,2]
[343555156,1732720243313,-693.24588945,9.9e-05,3]
[343555160,1732720243334,-1622.75411055,9.9e-05,3]
[343555162,1732720243344,-1000.0,9.926e-05,2]
[343555164,1732720243353,-1709.0,9.973e-05,2]
[343555166,1732720243364,-797.0,9.973e-05,2]
[343555168,1732720243374,-454.21731655,9.973e-05,2]
[343555171,1732720243398,-591.78268345,9.973e-05,2]
[343555173,1732720243407,-500.0,9.973e-05,2]
[343555175,1732720243416,-76965.23611389,9.98e-05,2]
[343555177,1732720243426,-500.0,9.997e-05,2]
[343555179,1732720243438,-522.33,9.997e-05,2]
[343555181,1732720243448,-500.0,9.997e-05,2]
[343555183,1732720243458,-500.0,9.997e-05,2]
[343555185,1732720243467,-500.0,9.997e-05,2]
[343555187,1732720243477,-500.0,9.997e-05,2]
[343555189,1732720243486,-500.0,9.997e-05,2]
[343555191,1732720243496,-284.04,9.997e-05,2]
[343555193,1732720243505,-500.0,9.997e-05,2]
[343555195,1732720243514,-500.0,9.997e-05,2]
[343555197,1732720243523,-500.0,9.997e-05,2]
[343555199,1732720243533,-500.0,9.997e-05,2]
[343555200,1732720243543,-500.0,9.997e-05,2]
[343555201,1732720243552,-500.0,9.997e-05,2]
[343555202,1732720243562,-500.0,9.997e-05,2]
[343555204,1732720243571,-500.0,9.997e-05,2]
[343555206,1732720243580,-500.0,9.997e-05,2]
[343555208,1732720243590,-500.0,9.997e-05,2]
[343555210,1732720243599,-500.0,9.997e-05,2]
[343555211,1732720243608,-500.0,9.997e-05,2]
[343555213,1732720243617,-500.0,9.997e-05,2]
[343555215,1732720243627,-500.0,9.997e-05,2]
[343555217,1732720243636,-500.0989,9.997e-05,2]
[343555219,1732720243645,-500.0,9.997e-05,2]
[343555221,1732720243655,-500.0,9.997e-05,2]
[343555223,1732720243663,-500.0,9.997e-05,2]
[343555225,1732720243673,-500.0,9.997e-05,2]
[343555227,1732720243684,-500.0,9.997e-05,2]
[343555229,1732720243693,-1462.26,9.997e-05,2]
[343555231,1732720243703,-7042.96,9.997e-05,2]
[343555233,1732720243715,-318.19,9.997e-05,2]
[343555235,1732720243725,-500.0,9.997e-05,2]
[343555237,1732720243734,-608.77,9.997e-05,2]
[343555239,1732720243743,-239.99,9.997e-05,2]
[343555241,1732720243753,-500.0,9.998e-05,2]
[343555243,1732720243762,-500.0,9.998e-05,2]
[343555245,1732720243772,-500.0,9.998e-05,2]
[343555247,1732720243783,-500.0,9.998e-05,2]
[343555249,1732720243793,-505.6060723,9.998e-05,2]
[343555251,1732720243802,-560.5,9.998e-05,2]
[343555253,1732720243811,-500.0,9.998e-05,2]
[343555254,1732720243820,-500.0,9.998e-05,2]
[343555256,1732720243830,-500.0,9.998e-05,2]
[343555258,1732720243838,-500.0,9.998e-05,2]
[343555260,1732720243847,-500.0,9.998e-05,2]
[343555262,1732720243856,-500.0,9.998e-05,2]
[343555264,1732720243866,-500.0,9.998e-05,2]
[343555266,1732720243875,-500.0,9.998e-05,2]
[343555268,1732720243884,-500.0,9.998e-05,2]
[343555269,1732720243894,-500.0,9.998e-05,2]
[343555270,1732720243903,-500.0,9.998e-05,2]
[343555271,1732720243913,-500.0,9.998e-05,2]
[343555272,1732720243922,-311.35,9.998e-05,2]
[343555273,1732720243934,-500.0,9.998e-05,2]
[343555274,1732720243944,-500.0,9.998e-05,2]
[343555275,1732720243953,-500.0,9.998e-05,2]
[343555276,1732720243962,-500.0,9.998e-05,2]
[343555277,1732720243971,-312.58,9.998e-05,2]
[343555278,1732720243980,-500.0,9.998e-05,2]
[343555279,1732720243990,-500.0,9.998e-05,2]
[343555280,1732720243999,-500.0,9.998e-05,2]
[343555281,1732720244008,-500.0,9.998e-05,2]
[343555282,1732720244017,-500.0,9.998e-05,2]
[343555283,1732720244026,-500.0,9.998e-05,2]
[343555284,1732720244035,-500.0,9.998e-05,2]
[343555285,1732720244045,-267.0,9.998e-05,2]
[343555287,1732720244055,-500.0,9.998e-05,2]
[343555289,1732720244065,-404.53,9.998e-05,2]
[343555291,1732720244074,-500.0,9.998e-05,2]
[343555293,1732720244084,-482.72,9.998e-05,2]
[343555295,1732720244093,-500.0,9.998e-05,2]
[343555297,1732720244103,-500.0,9.998e-05,2]
[343555299,1732720244112,-500.0,9.998e-05,2]
[343555301,1732720244121,-500.0,9.998e-05,2]
[343555303,1732720244131,-500.0,9.998e-05,2]
[343555305,1732720244140,-500.0,9.998e-05,2]
[343555307,1732720244149,-500.0,9.998e-05,2]
[343555309,1732720244158,-500.0,9.998e-05,2]
[343555311,1732720244167,-500.0,9.998e-05,2]
[343555313,1732720244177,-637.03,9.998e-05,2]
[343555315,1732720244193,-500.0,9.998e-05,2]
[343555317,1732720244203,-292.6,9.998e-05,2]
[343555319,1732720244212,-500.0,9.998e-05,2]
[343555321,1732720244221,-500.0,9.998e-05,2]
[343555323,1732720244231,-500.0,9.998e-05,2]
[343555325,1732720244240,-500.0,9.998e-05,2]
[343555327,1732720244249,-546.57,9.998e-05,2]
[343555329,1732720244259,-505.69,9.998e-05,2]
[343555331,1732720244268,-500.0,9.998e-05,2]
[343555333,1732720244277,-527.30638596,9.998e-05,2]
[343555335,1732720244286,-500.0,9.998e-05,2]
[343555337,1732720244295,-500.0,9.998e-05,2]
[343555339,1732720244304,-500.0,9.998e-05,2]
[343555341,1732720244314,-167.71,9.998e-05,2]
[343555343,1732720244323,-715.22,9.998e-05,2]
[343555345,1732720244333,-715.22,9.998e-05,2]
[343555347,1732720244342,-996.74,9.998e-05,2]
[343555349,1732720244352,-996.74,9.998e-05,2]
[343555351,1732720244361,-3882.34,9.998e-05,2]
[343555353,1732720244371,-3882.34,9.998e-05,2]
[343555355,1732720244381,-4997.37,9.998e-05,2]
[343555357,1732720244389,-4997.37,9.998e-05,2]
[343555359,1732720244398,-500.0,9.998e-05,2]
[343555361,1732720244408,-500.0,9.998e-05,2]
[343555363,1732720244417,-259.76567635,9.999e-05,2]
[343555365,1732720244426,-500.0,9.999e-05,2]
[343555367,1732720244441,-500.0,9.999e-05,2]
[343555369,1732720244450,-500.0,9.999e-05,2]
[343555371,1732720244459,-417.05736494,9.999e-05,2]
[343555373,1732720244469,-360.8,9.999e-05,2]
[343555375,1732720244480,-507.08,9.999e-05,2]
[343555377,1732720244490,-1069.79300478,9.999e-05,2]
[343555379,1732720244499,-470.25,9.999e-05,2]
[343555381,1732720244509,-500.0,9.999e-05,2]
[343555383,1732720244518,-500.0,9.999e-05,2]
[343555385,1732720244527,-566.39,9.999e-05,2]
[343555387,1732720244536,-243.57,9.999e-05,2]
[343555389,1732720244545,-500.0,9.999e-05,2]
[343555391,1732720244554,-603.48,9.999e-05,2]
[343555393,1732720244564,-689.07,9.999e-05,2]
[343555395,1732720244574,-500.0,9.999e-05,2]
[343555397,1732720244583,-500.0,9.999e-05,2]
[343555399,1732720244593,-500.0,9.999e-05,2]
[343555401,1732720244602,-223.9,9.999e-05,2]
[343555403,1732720244612,-500.0,9.999e-05,2]
[343555405,1732720244621,-500.0,9.999e-05,2]
[343555407,1732720244631,-332.61,9.999e-05,2]
[343555408,1732720244640,-500.0,9.999e-05,2]
[343555410,1732720244650,-500.0,9.999e-05,2]
[343555412,1732720244660,-500.0,9.999e-05,2]
[343555414,1732720244670,-284.72893055,9.999e-05,2]
[343555416,1732720244679,-404.32154144,9.999e-05,2]
[343555418,1732720244691,-500.0,9.999e-05,2]
[343555420,1732720244704,-500.0,9.999e-05,2]